Cogmind - Beta 14 @@@ ROGUE MODE // 2024.08.20 @ 18:18:37 Player: Daffa0360 Result: Destroyed by Y-54 Guardian with Flak Gun Performance ------------- Evolutions (4) 2000 Regions Visited (9) 1800 Robots Destroyed (50) 250 Value Destroyed (2363) 2363 Prototype IDs (24) 480 Alien Tech Used (0) 0 Bonus (1260) 1260 TOTAL SCORE: 8153 Bonus ------- High Alert Combat Kills 60 Entered Garrisons 400 Used RIF Installer 500 Aligned with FarCom 300 Cogmind --------- Core Integrity 0/850 Matter 300/300 Energy 100/100 System Corruption 2% Temperature Cool (48) Movement Core (350) Ox6 Location -6/Garrison Parts ------- > --- POWER (1) -------- (None) > --- PROPULSION (4) --- (None) > --- UTILITY (8) ------ Large Storage Unit Advanced Visual Processing Unit 0b10 Alert Chip Armor Integrity Analyzer Relay Coupler [NC] (22) Relay Coupler [Sentry] (22) > --- WEAPON (2) ------- (None) > --- INVENTORY (15) --- Light Fission Core Advanced VSS Leg Compact Matter Pod (150) Gravity Neutralizer Melee Analysis Suite Advanced Melee Analysis Suite Microactuators Relay Coupler [Grunt] (28) Improved Trap Extractor (0/6) Improved Field Recycling Unit (0) Peak State ------------ > --- POWER ------------ Light Antimatter Reactor > --- PROPULSION ------- Myomer Leg Advanced VSS Leg Advanced VSS Leg Advanced VSS Leg > --- UTILITY ---------- Large Storage Unit Advanced Visual Processing Unit 0b10 Alert Chip Improved Melee Analysis Suite Core Analyzer Armor Integrity Analyzer Relay Coupler [NC] Relay Coupler [Hunter] > --- WEAPON ----------- Greatsword > --- INVENTORY -------- Light Fission Core Cold Fusion Reactor Advanced VSS Leg Compact Matter Pod Gravity Neutralizer Melee Analysis Suite Microactuators Improved Trap Extractor Improved Field Recycling Unit Heavy Laser Heavy Laser Proton Cannon Advanced Assault Cannon Chainsword Gamma Bomb Trap [Rating: 77] Favorites ----------- Power Micro Nuclear Core Engine Improved Ion Engine Power Core Micro Nuclear Core Reactor Cold Fusion Reactor Propulsion Compact Wheel Leg Titanium Leg Wheel Compact Wheel Hover Unit Gravmag System Utility Core Analyzer Device Weight Redist. System Storage Small Storage Unit Processor Core Analyzer Hackware Relay Coupler [Hunter] Protection Improved Medium Armor Plating Weapon Advanced Assault Cannon Energy Gun Gatling Laser Energy Cannon Proton Cannon Ballistic Gun Assault Rifle Ballistic Cannon Advanced Assault Cannon Impact Weapon Makeshift Hammer Slashing Weapon Great Axe Build | -11 -10 -10 -10 -9 -8 -7 -7 -6 -6 ------- Run | Yrd Mat Min Exi Min Mat Fac Gar Fac Gar Slots Evolved 8 | . . . . . 4 2 . 2 . Power . | . . . . . . . . . . Propulsion 2 | . . . . . . . . 2 . Utility 6 | . . . . . 4 2 . . . Weapon . | . . . . . . . . . . Parts Attached 78 | 6 1 6 . . 9 18 19 9 10 Power 10 | 1 . 1 . . . 2 2 2 2 Engine 2 | 1 . 1 . . . . . . . Core 5 | . . . . . . 2 2 1 . Reactor 3 | . . . . . . . . 1 2 Propulsion 14 | 2 . 3 . . 2 2 1 3 1 Treads . | . . . . . . . . . . Leg 11 | 2 . 3 . . . 1 1 3 1 Wheel 1 | . . . . . . 1 . . . Hover 2 | . . . . . 2 . . . . Flight . | . . . . . . . . . . Utility 19 | 1 1 . . . 4 4 6 2 1 Device 6 | . 1 . . . 1 3 1 . . Storage 2 | 1 . . . . . . . 1 . Processor 6 | . . . . . 3 . 2 1 . Hackware 4 | . . . . . . . 3 . 1 Protection 1 | . . . . . . 1 . . . Artifact . | . . . . . . . . . . Weapon 35 | 2 . 2 . . 3 10 10 2 6 Energy Gun 6 | . . . . . . 2 2 1 1 Energy Cannon 2 | . . . . . . . . . 2 Ballistic Gun 9 | 2 . 2 . . 1 2 2 . . Ballistic Cannon 5 | . . . . . . 2 3 . . Launcher . | . . . . . . . . . . Special Weapon . | . . . . . . . . . . Impact Weapon 2 | . . . . . 2 . . . . Slashing Weapon 11 | . . . . . . 4 3 1 3 Piercing Weapon . | . . . . . . . . . . Special Melee Weapon . | . . . . . . . . . . Unidentified Prototypes 1 | . . . . . . . . 1 . Parts Lost 29 | . . 1 . . 1 5 9 1 12 Power 4 | . . . . . . 1 1 . 2 Propulsion 8 | . . 1 . . . 2 1 . 4 Utility 9 | . . . . . 1 . 6 . 2 Weapon 8 | . . . . . . 2 1 1 4 Highest Loss Streak 9 | . . 1 . . 1 2 3 1 9 To Critical Strikes . | . . . . . . . . . . Average Slot Usage (%) 86 | . 92 100 100 100 88 96 74 89 91 Engine 2 | . 14 14 14 14 9 . . . . Core 4 | . . . . . . 6 6 4 . Leg 12 | . 28 28 28 28 8 5 5 15 22 Wheel 4 | . . . . . . 5 7 3 . Hover 1 | . . . . . 9 2 . . . Device 10 | . 6 14 14 14 15 21 7 . . Storage 7 | . 14 14 14 14 9 7 6 4 6 Processor 18 | . . . . . 19 23 18 27 30 Hackware 4 | . . . . . . . . 18 15 Protection 2 | . . . . . . 5 2 . . Energy Gun 3 | . . . . . . 3 4 4 2 Ballistic Gun 7 | . 28 28 28 28 13 1 3 . . Ballistic Cannon 3 | . . . . . . 5 4 4 . Slashing Weapon 1 | . . . . . . 1 1 1 4 Peak Build Rating 77 | 6 8 15 15 15 34 47 46 70 77 Average Rating 37 | 5 7 12 14 15 27 43 34 53 69 On Entrance 25 | . 6 8 15 15 15 33 46 42 70 Naked Turns . | . . . . . . . . . . Heaviest Build 44 | 13 14 18 18 18 18 33 33 42 44 Greatest Support 79 | 20 20 32 32 32 38 24 22 54 79 Greatest Overweight (x) 6 | 1 . 1 . . 1 1 1 2 6 Average Overweight (x) . | . . . . . . . . . . Largest Inventory Capacity 15 | 8 8 8 8 8 8 8 8 15 15 Average Capacity 9 | 7 8 8 8 8 8 8 7 12 15 Most Carried 15 | 6 8 8 8 8 8 8 8 15 15 Average Carried 7 | 2 6 7 7 8 7 7 7 7 13 Final Capacity 15 | 8 8 8 8 8 8 8 5 15 15 Final Carried 15 | 6 8 8 8 8 8 8 5 15 10 Class Distribution -------------------- 64% | Mutant 20% | Skirmisher 7% | Gladiator 7% | Assassin Dominant Class ---------------- Mutant | -10/Materials Mutant | -10/Mines Mutant | -10/Exiles Mutant | -9/Mines Mutant | -8/Materials Mutant | -7/Factory Mutant | -7/Garrison Skirmisher | -6/Factory Gladiator | -6/Garrison Resources | -11 -10 -10 -10 -9 -8 -7 -7 -6 -6 ----------- Run | Yrd Mat Min Exi Min Mat Fac Gar Fac Gar Matter Collected 1691 | 276 48 117 . . 100 337 455 303 55 Remotely . | . . . . . . . . . . Salvage Created 2177 | 95 80 112 . . 100 451 571 395 373 Parts 112 | 7 6 8 . . 9 30 24 11 17 Haulers Intercepted . | . . . . . . . . . . Recyclers Shooed 2 | . 1 . . . . . . 1 . Parts Field Recycled . | . . . . . . . . . . Retrieved Matter . | . . . . . . . . . . Parts Self-Destructed . | . . . . . . . . . . Prevented . | . . . . . . . . . . Kills | -11 -10 -10 -10 -9 -8 -7 -7 -6 -6 ------- Run | Yrd Mat Min Exi Min Mat Fac Gar Fac Gar Combat Hostiles Destroyed 42 | . 4 2 . . 2 9 16 3 6 Melee 6 | . . . . . . . . 1 5 Guns 27 | . 4 2 . . 2 6 11 1 1 Cannons 9 | . . . . . . 3 5 1 . Classes Destroyed 10 | 2 2 1 . . . 5 . . . Tunneler 2 | 2 . . . . . . . . . Recycler 4 | 1 . . . . . 1 . 2 . Operator 1 | . . . . . . 1 . . . Watcher 1 | . . . . . . 1 . . . Swarmer 11 | . 3 . . . . . 6 . 2 Grunt 15 | . 1 . . . . 5 7 2 . Duelist 2 | . . . . . . 1 . . 1 Sentry 10 | . . 2 . . 2 . 2 1 3 Hunter 2 | . . . . . . 1 1 . . Programmer 2 | . . . . . . 2 . . . Best Kill Streak 4 | 3 3 2 . . 2 4 4 3 3 Combat Bots Only 4 | . 3 2 . . 2 3 4 1 3 Max Kills in Single Turn 2 | 1 2 1 . . 1 1 2 1 1 Gunslinging 1 | . 1 . . . . . 1 . . Exploded . | . . . . . . . . . . Melee 1 | . . . . . . . . 1 1 Uniques/NPCs Destroyed . | . . . . . . . . . . Combat | -11 -10 -10 -10 -9 -8 -7 -7 -6 -6 -------- Run | Yrd Mat Min Exi Min Mat Fac Gar Fac Gar Hostile Shots Fired 554 | . 30 14 . . 23 23 116 29 319 Missed 193 | . 11 3 . . 7 11 42 8 111 Damage Taken 4635 | . 179 211 . . 213 589 1130 261 2052 Core 1380 | . 66 . . . 46 175 239 38 816 Absorbed by Shields . | . . . . . . . . . . Core Remaining (%) 76 | 100 . . . 73 91 . 40 . . Volleys Fired 119 | 6 17 6 . . 6 22 40 13 9 Largest 2 | 2 2 2 . . 2 2 2 2 2 Hottest 144 | 40 40 40 . . 45 128 128 117 144 Shots Fired 221 | 12 34 12 . . 12 41 71 23 16 Gun 166 | 12 34 12 . . 12 27 50 10 9 Cannon 55 | . . . . . . 14 21 13 7 Launcher . | . . . . . . . . . . Special . | . . . . . . . . . . Kinetic 154 | 12 34 12 . . 12 28 39 17 . Thermal 60 | . . . . . . 13 32 6 9 Explosive . | . . . . . . . . . . Electromagnetic 7 | . . . . . . . . . 7 Robot Hit Streak 23 | 5 10 13 . . 23 10 11 6 12 Robot Miss Streak 12 | 1 2 . . . 1 2 12 5 1 Penetration Max . | . . . . . . . . . . Secondary Targets 2 | . 1 . . . . . 1 . . Max Gunslinging Chain 1 | . 1 . . . . . 1 . . Shots Hit Robots 197 | 9 24 12 . . 11 32 59 21 29 Core Hits 122 | 6 7 4 . . 4 30 51 10 10 Critical Kills . | . . . . . . . . . . Critical Parts Destroyed 1 | . 1 . . . . . . . . Critical Strikes 12 | . 1 . . . . 1 2 3 5 Burn 3 | . . . . . . . . 2 1 Destroy 1 | . 1 . . . . . . . . Blast 3 | . . . . . . 1 1 1 . Sever 5 | . . . . . . . 1 . 4 Melee Attacks 108 | . . . . . 21 3 40 8 36 Impact 22 | . . . . . 21 1 . . . Slashing 86 | . . . . . . 2 40 8 36 Piercing . | . . . . . . . . . . Sneak Attacks 3 | . . . . . . . . 3 . Combat Hostiles 1 | . . . . . . . . 1 . Follow-up Attacks . | . . . . . . . . . . Damage Inflicted 5093 | 84 253 131 . . 158 782 1687 874 1124 Guns 2289 | 84 253 131 . . 158 564 828 136 135 Cannons 890 | . . . . . . 211 360 208 111 Explosions . | . . . . . . . . . . Melee 1907 | . . . . . . . 499 530 878 Ramming 7 | . . . . . . 7 . . . Kinetic 1947 | 84 253 131 . . 158 462 592 267 . Thermal 1121 | . . . . . . 313 596 77 135 Explosive . | . . . . . . . . . . Electromagnetic 111 | . . . . . . . . . 111 Impact . | . . . . . . . . . . Slashing 1907 | . . . . . . . 499 530 878 Piercing . | . . . . . . . . . . Highest Corruption 5 | . . . . . . 4 5 . 2 Average Corruption 4 | . . . . . . 2 5 . 2 Corruption Purged 5 | . . . . . . 5 . . . Corruption Blocked . | . . . . . . . . . . Effects 54 | . . . . . . 1 53 . . Message Errors 22 | . . . . . . . 22 . . Matter Fused 10 | . . . . . . 1 9 . . Heat Flow Errors 6 | . . . . . . . 6 . . Energy Discharges 6 | . . . . . . . 6 . . Data Loss (minor) 6 | . . . . . . . 6 . . Data Loss (major) 2 | . . . . . . . 2 . . Misfires 1 | . . . . . . . 1 . . Alerts 1 | . . . . . . . 1 . . Overload Shots . | . . . . . . . . . . Overflow Damage 205 | . . . . . . 58 52 95 . Projectiles 8 | . . . . . . . . 8 . Explosions 58 | . . . . . . 58 . . . Melee 139 | . . . . . . . 52 87 . Knockbacks 4 | . . . . . . 2 1 1 . Impact . | . . . . . . . . . . Kinetic 4 | . . . . . . 2 1 1 . Secondary . | . . . . . . . . . . Self-Inflicted Damage 209 | . . . . . . 209 . . . Shots 3 | . . . . . . 3 . . . Rammed 1 | . . . . . . 1 . . . Targets Rammed 1 | . . . . . . 1 . . . Kicked . | . . . . . . . . . . Crushed . | . . . . . . . . . . Highest Temperature 344 | . 12 9 . . 8 148 344 63 228 Average Temperature 75 | . 7 9 . . 8 50 94 24 95 Received Heat Transfer 945 | . 42 45 . . 90 45 192 129 402 Effects 1 | . . . . . . . 1 . . Shutdowns 1 | . . . . . . . 1 . . Siege Activations . | . . . . . . . . . . Robots Corrupted . | . . . . . . . . . . Combat Hostiles . | . . . . . . . . . . Parts Fried 2 | . . . . . . . . . 2 Impact Corruptions . | . . . . . . . . . . Robots Melted . | . . . . . . . . . . Combat Hostiles . | . . . . . . . . . . Parts Melted 3 | . . . . . . . 3 . . Heat Transferred 2638 | . . . . . . 700 1309 296 333 Parts Sabotaged . | . . . . . . . . . . Parts Stolen . | . . . . . . . . . . Parts Stripped . | . . . . . . . . . . Power Chain Reactions . | . . . . . . . . . . Alert | -11 -10 -10 -10 -9 -8 -7 -7 -6 -6 ------- Run | Yrd Mat Min Exi Min Mat Fac Gar Fac Gar Peak Influence 916 | 15 165 119 . . 189 109 916 487 392 Initial 480 | . 9 64 . . . . 48 480 147 Average 210 | 3 45 108 . . 67 27 325 386 304 Maximum Alert Level 3 | . . . . . . . 3 2 1 Low Security (%) 58 | 100 100 100 . 100 100 100 39 . 16 Level 1 26 | . . . . . . . 33 52 83 Level 2 12 | . . . . . . . 18 47 . Level 3 3 | . . . . . . . 8 . . Level 4 . | . . . . . . . . . . Level 5 . | . . . . . . . . . . High Security . | . . . . . . . . . . Max Security . | . . . . . . . . . . Squads Dispatched 11 | . 2 . . . 2 4 . 3 . Investigation . | . . . . . . . . . . Extermination 3 | . . . . . . 2 . 1 . Reinforcement 8 | . 2 . . . 2 2 . 2 . Assault . | . . . . . . . . . . Garrison . | . . . . . . . . . . Intercept . | . . . . . . . . . . Searches Triggered . | . . . . . . . . . . Construction Impeded . | . . . . . . . . . . Haulers Reinforced 1 | . . . . . . . . 1 . Active Scanning Responses . | . . . . . . . . . . Cargo Convoy Interrupts . | . . . . . . . . . . Stealth | -11 -10 -10 -10 -9 -8 -7 -7 -6 -6 --------- Run | Yrd Mat Min Exi Min Mat Fac Gar Fac Gar Distress Signals 4 | . . . . . 3 1 . . . Communications Jammed . | . . . . . . . . . . Distress Signals . | . . . . . . . . . . Times Spotted 88 | . 7 2 . . 24 15 21 5 14 Peak Tracking Total 14 | . 4 2 . . 14 3 8 1 6 Tactical Retreats 12 | . 1 . . . 4 1 3 . 3 Traps | -11 -10 -10 -10 -9 -8 -7 -7 -6 -6 ------- Run | Yrd Mat Min Exi Min Mat Fac Gar Fac Gar Traps Triggered 8 | . . 1 . . . 3 2 . 2 Indirectly . | . . . . . . . . . . Trap Hack Attempts . | . . . . . . . . . . Triggered . | . . . . . . . . . . Disarmed . | . . . . . . . . . . Reprogrammed . | . . . . . . . . . . Reused 1 | . . . . . . . 1 . . Traps Extracted . | . . . . . . . . . . Installed 4 | . . . . . . . 3 . 1 Triggered 1 | . . . . . . . 1 . . Most Traps Carried 2 | . . . . . . . 2 1 1 Machines | -11 -10 -10 -10 -9 -8 -7 -7 -6 -6 ---------- Run | Yrd Mat Min Exi Min Mat Fac Gar Fac Gar Machines Disabled 11 | . . . . . . 4 6 . 1 Max in Single Turn 3 | . . . . . . 3 1 . 1 Garrison Relay 2 | . . . . . . . 1 . 1 Machines Repaired . | . . . . . . . . . . Machines Dismantled . | . . . . . . . . . . Machines Sabotaged . | . . . . . . . . . . Overloaded Fab Kills . | . . . . . . . . . . Hacking | -11 -10 -10 -10 -9 -8 -7 -7 -6 -6 --------- Run | Yrd Mat Min Exi Min Mat Fac Gar Fac Gar Machines Accessed 18 | . 3 1 1 . 3 5 1 3 1 Terminals 10 | . 3 . . . 3 2 1 . 1 Fabricators 3 | . . . . . . 1 . 2 . Repair Stations . | . . . . . . . . . . Recycling Units . | . . . . . . . . . . Scanalyzers 1 | . . . . . . 1 . . . Garrison Access 2 | . . . . . . 1 . 1 . Total Hacks 42 | . 10 1 1 . 13 9 3 3 2 Successful 19 | . 6 1 1 . 6 2 . 2 1 Failed 23 | . 4 . . . 7 7 3 1 1 Catastrophic 8 | . 2 . . . 1 3 . 1 1 Database Lockouts . | . . . . . . . . . . Manual 14 | . 6 . 1 . 6 1 . . . Terminals 31 | . 10 . . . 13 3 3 . 2 Fabricators 4 | . . . . . . 2 . 2 . Repair Stations . | . . . . . . . . . . Recycling Units . | . . . . . . . . . . Scanalyzers 1 | . . . . . . 1 . . . Garrison Access 4 | . . . . . . 3 . 1 . Terminal Hacks 12 | . 4 1 1 . 4 1 . . 1 Record 6 | . 3 . . . 3 . . . . Part Schematic 1 | . . . . . 1 . . . . Open Door 1 | . . 1 . . . . . . . Open DSF 1 | . . . . . . 1 . . . Emergency Access Points 1 | . . . . . . . . . 1 Locate Traps 1 | . 1 . . . . . . . . Derelict Proto ID Bank 1 | . . . 1 . . . . . . Fabricator Hacks 1 | . . . . . . . . 1 . Network Status 1 | . . . . . . . . 1 . Repair Station Hacks . | . . . . . . . . . . Recycling Unit Hacks . | . . . . . . . . . . Scanalyzer . | . . . . . . . . . . Garrison Access Hacks 2 | . . . . . . 1 . 1 . Unlock Access 2 | . . . . . . 1 . 1 . Unauthorized Hacks 4 | . 2 . . . 2 . . . . Terminals 4 | . 2 . . . 2 . . . . Track 1 | . . . . . 1 . . . . Assimilate 1 | . 1 . . . . . . . . Botnet 2 | . 1 . . . 1 . . . . Fabricators . | . . . . . . . . . . Repair Stations . | . . . . . . . . . . Recycling Units . | . . . . . . . . . . Scanalyzers . | . . . . . . . . . . Garrison Access . | . . . . . . . . . . Data Cores Recovered . | . . . . . . . . . . Used . | . . . . . . . . . . Hacking Detections 14 | . 3 . . . 3 5 1 1 1 Full Trace Events 4 | . 1 . . . 1 . 1 . 1 Feedback Events . | . . . . . . . . . . Feedback Blocked . | . . . . . . . . . . Robot Schematics Acquired . | . . . . . . . . . . Robots Built . | . . . . . . . . . . Authchips . | . . . . . . . . . . Time . | . . . . . . . . . . Total Robot Build Rating . | . . . . . . . . . . Part Schematics Acquired 1 | . . . . . 1 . . . . Parts Built . | . . . . . . . . . . Authchips . | . . . . . . . . . . Time . | . . . . . . . . . . Total Part Build Rating . | . . . . . . . . . . Parts Repaired . | . . . . . . . . . . Time . | . . . . . . . . . . Parts Recycled . | . . . . . . . . . . Recycled Matter . | . . . . . . . . . . Retrieved Matter . | . . . . . . . . . . Retrieved Components . | . . . . . . . . . . Parts Scanalyzed . | . . . . . . . . . . Part Schematics Acquired . | . . . . . . . . . . Parts Damaged . | . . . . . . . . . . Bothacking | -11 -10 -10 -10 -9 -8 -7 -7 -6 -6 ------------ Run | Yrd Mat Min Exi Min Mat Fac Gar Fac Gar Used RIF Installer 1 | . . . . . . . 1 . . Robots Hacked . | . . . . . . . . . . Non-combat . | . . . . . . . . . . Combat . | . . . . . . . . . . Robot Hacks Applied . | . . . . . . . . . . Relay Couplers Released 8 | . . . . . . . 3 . 5 Machine Destruction 8 | . . . . . . . 3 . 5 Attached 4 | . . . . . . . 3 . 1 Fabnet Peak Effective % . | . . . . . . . . . . Robots Rewired . | . . . . . . . . . . Allies Hacked . | . . . . . . . . . . Hacks Repelled . | . . . . . . . . . . Allies | -11 -10 -10 -10 -9 -8 -7 -7 -6 -6 -------- Run | Yrd Mat Min Exi Min Mat Fac Gar Fac Gar Total Allies 3 | . . 3 . . . . . . . Largest Group 3 | . . 3 3 . . . . . . Highest-Rated Group 40 | . . 40 40 . . . . . . Highest-Rated Ally 16 | . . 16 16 . . . . . . Total Orders 3 | . . . 3 . . . . . . STAY 3 | . . . 3 . . . . . . Ally Attacks . | . . . . . . . . . . Total Damage . | . . . . . . . . . . Kills . | . . . . . . . . . . Allies Corrupted . | . . . . . . . . . . Allies Melted . | . . . . . . . . . . Intel | -11 -10 -10 -10 -9 -8 -7 -7 -6 -6 ------- Run | Yrd Mat Min Exi Min Mat Fac Gar Fac Gar Robot Analysis Total . | . . . . . . . . . . Derelict Logs Recovered . | . . . . . . . . . . Drone Launches . | . . . . . . . . . . Drone Recoveries . | . . . . . . . . . . Exploration | -11 -10 -10 -10 -9 -8 -7 -7 -6 -6 ------------- Run | Yrd Mat Min Exi Min Mat Fac Gar Fac Gar Turns Passed 7212 | 143 377 344 259 181 409 1491 2461 839 708 Spaces Moved 3874 | 91 262 242 207 85 365 814 840 520 448 Core 4 | 3 . . . . . . . . 1 Treads . | . . . . . . . . . . Legs 1675 | 88 262 242 207 85 76 . . 268 447 Wheels 1758 | . . . . . . 666 840 252 . Hover 437 | . . . . . 289 148 . . . Flight . | . . . . . . . . . . Fastest Speed 50 | 50 120 120 125 125 56 56 100 90 90 Average Speed 105 | 120 120 123 125 125 70 107 109 99 92 Slowest Speed 350 | 190 120 190 125 125 130 120 115 180 350 Overloaded Moves . | . . . . . . . . . . Propulsion Burnouts . | . . . . . . . . . . Robots Hopped . | . . . . . . . . . . Cave-ins Triggered 1 | . . . . . . . 1 . . Exploration Rate (%) 34 | 5 44 49 59 21 30 22 51 11 54 Regions Visited 9 Branch Regions 3 Pre-discovered Areas . | . . . . . . . . . . Known Exits Taken 2 | . . . . . . 1 . 1 . Unknown Exits Taken 6 | 1 1 1 1 1 1 . . . . Scrap Searched 2 | . . . . 2 . . . . . Spaces Dug 43 | . . . . . 21 4 14 1 3 Terrain Destroyed 78 | . . . . . 21 37 14 3 3 Melee 42 | . . . . . 21 3 14 1 3 Projectile 6 | . . . . . . 4 . 2 . AOE 30 | . . . . . . 30 . . . Terrain Rammed . | . . . . . . . . . . Walls Destroyed . | . . . . . . . . . . Machines Disabled . | . . . . . . . . . . Actions | -11 -10 -10 -10 -9 -8 -7 -7 -6 -6 --------- Run | Yrd Mat Min Exi Min Mat Fac Gar Fac Gar Total 6617 | 114 294 280 208 161 479 1379 2236 805 661 Wait 2323 | . 12 14 . 75 75 502 1264 234 147 Move 3867 | 90 261 241 206 84 364 814 839 520 448 Hop . | . . . . . . . . . . Pick Up 65 | 12 3 4 1 1 3 13 8 16 4 Fast Attach 13 | . . 1 . . 2 2 5 2 1 Attach 30 | 6 1 . . . 2 7 4 5 5 Detach . | . . . . . . . . . . Swap 35 | . . 5 . . 5 9 10 2 4 Drop 36 | . . 9 1 1 1 6 7 5 6 Fire 119 | 6 17 6 . . 6 22 40 13 9 Melee 108 | . . . . . 21 3 40 8 36 Ram 1 | . . . . . . 1 . . . Kick . | . . . . . . . . . . Crush . | . . . . . . . . . . Escape Stasis 16 | . . . . . . . 16 . . Rewire . | . . . . . . . . . . Trap 4 | . . . . . . . 3 . 1 Miscellaneous . | . . . . . . . . . . Route ------- -11/Scrapyard -10/Materials (discovered 2 exits: [*Mat] / *Min) -10/Mines -10/Exiles -9/Mines (discovered 2 exits: *Mat x2) -8/Materials -7/Factory -7/Garrison -6/Factory (discovered 2 exits: [*Fac] / Gar) -6/Garrison (discovered 1 exit: [*Fac]) History --------- Turn | Location | Event 30 | -11/Scrapyard | Discovered new exit (range 15) 144 | -11/Scrapyard | Entered Materials 285 | -10/Materials | Discovered new exit (range 3) 316 | -10/Materials | Build established: Mutant 484 | -10/Materials | Discovered new exit (range 13) 521 | -10/Materials | Entered Mines 567 | -10/Mines | Met a Derelict bent on vengeance 634 | -10/Mines | Met a Derelict who couldn't figure out how to use a Trap Extractor 774 | -10/Mines | Assisted by bots powering up and referring to "LRC-V3" 856 | -10/Mines | Deemed a non-threat by the Exiles lab entrance 856 | -10/Mines | Discovered new exit (range 5) 865 | -10/Mines | Entered Exiles 865 | -10/Exiles | Accompanied by 3 allies 899 | -10/Exiles | Met 8R-AWN 918 | -10/Exiles | Met EX-HEX 952 | -10/Exiles | Met EX-BIN 969 | -10/Exiles | Aligned with FarCom system 970 | -10/Exiles | Given EX-Vault access code 999 | -10/Exiles | Opened EX-Vault 1006 | -10/Exiles | Found 0b10 Alert Chip 1031 | -10/Exiles | Warned to stay clear of 0b10 Research branches 1067 | -10/Exiles | Met EX-DEC 1109 | -10/Exiles | Discovered new exit (range 12) 1124 | -10/Exiles | Left Exiles lab with 0b10 Alert Chip 1124 | -10/Exiles | Entered Mines 1190 | -9/Mines | Discovered new exit (range 12) 1249 | -9/Mines | A weapon hastily lodged in a ceiling crevice suddenly fell to the ground 1296 | -9/Mines | Discovered new exit (range 7) 1305 | -9/Mines | Entered Materials 1305 | -8/Materials | Evolved 4 slots: Utility x4 1710 | -8/Materials | Discovered new exit (range 8) 1714 | -8/Materials | Entered Factory 1714 | -7/Factory | Evolved 2 slots: Utility x2 1717 | -7/Factory | Identified exit to DSF 3107 | -7/Factory | Build established: Skirmisher 3205 | -7/Factory | Identified exit to Garrison 3205 | -7/Factory | Entered Garrison 3223 | -7/Garrison | Triggered checkpoint 3475 | -7/Garrison | Triggered checkpoint 3476 | -7/Garrison | Crushed by falling debris 3505 | -7/Garrison | Build established: Mutant 3860 | -7/Garrison | Triggered checkpoint 4963 | -7/Garrison | Core integrity fell below 50% 4986 | -7/Garrison | Lost 3 parts (1p1n1u) 5063 | -7/Garrison | Triggered checkpoint 5303 | -7/Garrison | Discovered new exit (range 19) 5394 | -7/Garrison | Triggered checkpoint 5460 | -7/Garrison | Installed Relay Interface Framework 5530 | -7/Garrison | Garrison Relay disabled 5666 | -7/Garrison | Entered Factory 5666 | -6/Factory | Evolved 2 slots: Propulsion x2 6108 | -6/Factory | Build established: Skirmisher 6475 | -6/Factory | Discovered new exit (range 5) 6494 | -6/Factory | Identified exit to Garrison 6505 | -6/Factory | Entered Garrison 6611 | -6/Garrison | Garrison Relay disabled 6683 | -6/Garrison | Build established: Gladiator 7085 | -6/Garrison | Triggered checkpoint 7149 | -6/Garrison | Discovered new exit (range 17) 7203 | -6/Garrison | Core integrity fell below 50% 7209 | -6/Garrison | Core integrity fell below 20% 7213 | -6/Garrison | Destroyed by Y-54 Guardian with Flak Gun Last Messages --------------- 07180_ Installed Gamma Bomb Trap. 07183_ Triggered Fusion Bomb Trap. 07183_ An explosion rips through the floor. 07187_ Core Analyzer destroyed. 07190_ The unstable cave ceiling collapses. 07191_ Adv. VSS Leg destroyed. 07194_ The unstable cave ceiling collapses. 07194_ Proton Cannon destroyed. 07196_ Adv. VSS Leg destroyed. 07198_ Destroyed Carbon-fiber Leg. 07198_ Cold Fusion Reactor destroyed. 07200_ Hvy. Laser destroyed. 07201_ Adv. VSS Leg destroyed. 07206_ Imp. Melee Analysis Suite fried. 07206_ L-41 Fighter destroyed. 07210_ Chainsword destroyed. 07212_ P-60 Hacker resets Y-54 Guardian, system corruption cleaned. 07213_ Y-54 Guardian destroyed. 07213_ Relay Coupler [Hunter] destroyed. Map ----- +----------------------------------------------------+ | ?????????????????????????????????????????????? | | ?????????????????????????????????????????????? | | ?????????????????????????????????????????????? | | ?????????????????????????????????????????????? | | ?????????????????????????????????????????????? | | ?????????????????????????????????????????????? | | ?????????????????????????????????????????????? | | ?????????????????????????????????????????????? | | ?????????????????????????????????????????????? | | ?????????????????????????????????????????????? | | ?????????????????????????????????????????????? | | ?????????#???????#???????#???????????????????? | | ????????? ??????? ??????? ???????????????????? | | ????????? ??????? ??????? ??+????????????????? | | ????????? ??????? ??????# #??""""????????????? | | ????????? ??????? ?????? ?????"????????????? | | ????????? ??????? ??????# #??""""????????????? | | ????????? ??????? ??????# #?+????????????????? | | ????????# #?????# #?????# #??????????????????? | | ????????# #?????# #?????# #??????????????????? | | ????????# #?????# #?????# #??????????????????? | | ????????# #?????# #?????#Y#??????????????????? | | ????????# #?????# #????## ##?????????????????? | | ????????# #?????# #???## ##????????????????? | | ????????# #?????# #??## ! #????????????????? | | ????????# #?????# #??# #@! ##???????????????? | | ????????# #?????#^#??# *%[# #?#####?????????? | | ????????# #?????# #??# ![= #?# #?????????? | | ## ######+#######+##### #### < #?????????? | | YY #?????????? | | p #?????????? | | #?????????? | | #######+"######+##############"##?????????? | | ??????# #????#??????????????# #??????????? | | #?????# #?????+?????????????# #???+??????? | | ####### #???????????????????# #??????????? | | + #####"""#???????????# #?+???+????? | | ####### +??? +??????????? | | #?????# ##### #???????????###?+???+????? | | #?????# #????????????????????????????????? | | ####### #?????????????????????????+??????? | | + #????????????????????????????????? | | + #????????????????????????????????? | | #### #####????????????????????????????????? | | #### #????????????????????????????????????? | | " #????????????????????????????????????? | | ####????????????????????????????????????? | | #???????????????????????????????????????? | | #???????????????????????????????????????? | | ###???????????????????????????????????????? | +----------------------------------------------------+ Best States ------------- Heat Dissipation 37 Energy Generation 21 Energy Capacity 265 Matter Stores 300 Matter Capacity 300 Sight Range 20 Terrain Scan Range 16 Terrain Scan Density 10 Additional Mass Support 6 EM Shielding 2 Armor Coverage 225 Evasion (%) 57 Targeting Accuracy 8 Melee Accuracy 6 Core Analysis 6 Armor Integrity Analysis 30 Kinecelleration 30 Relay Coupler Types 3 Relay Coupler Value 58 Item Schematics ----------------- Imp. Hover Unit | -8/Materials | Hacked Robot Schematics ------------------ None Fabricated ------------ Nothing Alien Tech Used ----------------- None Achievements -------------- None Challenges ------------ None Game ------ Seed ThermicHellfireModule Manual? 0 Play Time 00:57:13 Cumulative 52.6 hours Start 2024.08.20 @ 16:12:08 End 2024.08.20 @ 18:18:37 Sessions 5 Manual Loads 0 Difficulty Rogue Special Mode None Game No. 85 Rogue 81 Adventurer 4 Explorer 0 Win Type - Total 0 Types 0/0/0/0/0/0/0/0/0 Lore% 22 Gallery% 38 Achievement% 30 Wizard Run 0 Options --------- Layout 2 ASCII 0 Keyboard 0 Movement Mouse Keybinds 0 Fullscreen 2 Font 24/Smallcaps Map View 50x44 Zoom Use 0% Tactical HUD 1 Map Filters NONE Filters NONE Steam 1 RUN: 28d155bc-f8c6-4835-b780-1bf402822dd6